fUST/lending_fUST_20250611
["ID","MTS","AMOUNT","RATE_DAILY","PERIOD"]
[365324942,1749600648444,-2211.98,0.00023013,4]
[365324943,1749600648453,-460.0,0.00023013,4]
[365324944,1749600648463,-1524.42,0.00023013,4]
[365324945,1749600648473,-460.0,0.00023013,4]
[365324946,1749600648483,-926.75,0.00023013,4]
[365324947,1749600648492,-151.0,0.00023013,7]
[365324948,1749600648503,-151.0,0.00023013,7]
[365324949,1749600648512,-296.6469,0.00023013,7]
[365324950,1749600648522,-1045.72,0.00023013,4]
[365324951,1749600648532,-1035.33,0.00023013,4]
[365324952,1749600648542,-2740.55,0.00023013,4]
[365324953,1749600648552,-1159.26,0.00023013,4]
[365324954,1749600648562,-691.32,0.00023013,4]
[365324955,1749600648572,-460.0,0.00023013,4]
[365324956,1749600648582,-460.0,0.00023013,4]
[365324957,1749600648592,-151.0,0.00023013,7]
[365324958,1749600648602,-1193.01,0.00023013,4]
[365324959,1749600648612,-1929.48,0.00023013,4]
[365324960,1749600648622,-320.0,0.00023013,4]
[365324961,1749600648631,-980.2,0.00023013,4]
[365324962,1749600648641,-460.0,0.00023013,4]
[365324963,1749600648652,-2299.71,0.00023013,4]
[365324964,1749600648661,-460.0,0.00023013,4]
[365324965,1749600648671,-1207.42,0.00023013,4]
[365324966,1749600648682,-2848.88539018,0.00023038,8]
[365324967,1749600648692,-151.0,0.00023038,7]
[365324968,1749600648701,-151.0,0.00023038,7]
[365324969,1749600648711,-151.0,0.00023038,7]
[365324970,1749600648721,-153.0,0.00023045,2]
[365324971,1749600648730,-153.0,0.00023045,2]
[365324972,1749600648740,-153.0,0.00023045,2]
[365324973,1749600648750,-153.0,0.00023045,2]
[365324974,1749600648760,-153.0,0.00023045,2]
[365324975,1749600648770,-153.0,0.00023045,2]
[365324976,1749600648780,-153.0,0.00023045,2]
[365324977,1749600648790,-153.0,0.00023045,2]
[365324978,1749600648800,-153.0,0.00023045,2]
[365324979,1749600648810,-153.0,0.00023045,2]
[365324980,1749600648820,-153.0,0.00023045,2]
[365324981,1749600648831,-153.0,0.00023045,2]
[365324982,1749600648841,-153.0,0.00023045,2]
[365324983,1749600648852,-153.0,0.00023045,2]
[365324984,1749600648862,-153.0,0.00023045,2]
[365324985,1749600648872,-153.0,0.00023045,2]
[365324986,1749600648882,-153.0,0.00023045,2]
[365324987,1749600648893,-153.0,0.00023045,2]
[365324988,1749600648904,-153.0,0.00023045,2]
[365324989,1749600648914,-153.0,0.00023045,2]
[365324990,1749600648924,-153.0,0.00023045,2]
[365324991,1749600648934,-153.0,0.00023045,2]
[365324992,1749600648945,-153.0,0.00023045,2]
[365324993,1749600648955,-153.0,0.00023045,2]
[365324994,1749600648966,-153.0,0.00023045,2]
[365324995,1749600648975,-153.0,0.00023045,2]
[365324996,1749600648985,-153.0,0.00023045,2]
[365324997,1749600648995,-153.0,0.00023045,2]
[365324998,1749600649005,-153.0,0.00023045,2]
[365324999,1749600649015,-153.0,0.00023045,2]
[365325000,1749600649026,-153.0,0.00023045,2]
[365325001,1749600649036,-153.0,0.00023045,2]
[365325002,1749600649046,-153.0,0.00023045,2]
[365325003,1749600649055,-153.0,0.00023045,2]
[365325004,1749600649066,-153.0,0.00023045,2]
[365325005,1749600649075,-153.0,0.00023045,2]
[365325006,1749600649086,-153.0,0.00023045,2]
[365325007,1749600649096,-153.0,0.00023045,2]
[365325008,1749600649106,-153.0,0.00023045,2]
[365325009,1749600649116,-153.0,0.00023045,2]
[365325010,1749600649126,-153.0,0.00023045,2]
[365325011,1749600649136,-153.0,0.00023045,2]
[365325012,1749600649148,-153.0,0.00023045,2]
[365325013,1749600649158,-153.0,0.00023045,2]
[365325014,1749600649168,-153.0,0.00023045,2]
[365325015,1749600649178,-153.0,0.00023045,2]
[365325016,1749600649189,-153.0,0.00023045,2]
[365325017,1749600649199,-153.0,0.00023045,2]
[365325018,1749600649209,-153.0,0.00023045,2]
[365325019,1749600649219,-153.0,0.00023045,2]
[365325020,1749600649229,-153.0,0.00023045,2]
[365325021,1749600649239,-153.0,0.00023045,2]
[365325022,1749600649249,-153.0,0.00023045,2]
[365325023,1749600649260,-153.0,0.00023045,2]
[365325024,1749600649270,-153.0,0.00023045,2]
[365325025,1749600649280,-153.0,0.00023045,2]
[365325026,1749600649290,-153.0,0.00023045,2]
[365325027,1749600649299,-153.0,0.00023045,2]
[365325028,1749600649309,-153.0,0.00023045,2]
[365325029,1749600649318,-153.0,0.00023045,2]
[365325030,1749600649329,-153.0,0.00023045,2]
[365325031,1749600649339,-153.0,0.00023045,2]
[365325032,1749600649352,-153.0,0.00023045,2]
[365325033,1749600649362,-153.0,0.00023045,2]
[365325034,1749600649372,-153.0,0.00023045,2]
[365325035,1749600649383,-153.0,0.00023045,2]
[365325036,1749600649396,-153.0,0.00023045,2]
[365325037,1749600649406,-153.0,0.00023045,2]
[365325038,1749600649416,-153.0,0.00023045,2]
[365325039,1749600649428,-153.0,0.00023045,2]
[365325040,1749600649504,-153.0,0.00023045,2]
[365325041,1749600649514,-153.0,0.00023045,2]
[365325042,1749600649524,-153.0,0.00023045,2]
[365325043,1749600649534,-153.0,0.00023045,2]
[365325044,1749600649544,-153.0,0.00023045,2]
[365325045,1749600649554,-153.0,0.00023045,2]
[365325046,1749600649563,-153.0,0.00023045,2]
[365325047,1749600649573,-153.0,0.00023045,2]
[365325048,1749600649583,-153.0,0.00023045,2]
[365325049,1749600649592,-153.0,0.00023045,2]
[365325050,1749600649602,-153.0,0.00023045,2]
[365325051,1749600649611,-153.0,0.00023045,2]
[365325052,1749600649622,-153.0,0.00023045,2]
[365325053,1749600649631,-151.0,0.00023045,7]
[365325054,1749600649643,-151.0,0.00023045,7]
[365325055,1749600649653,-151.0,0.00023045,7]
[365325056,1749600649663,-657.851361,0.00023045,7]
[365325057,1749600649674,-657.851361,0.00023045,7]
[365325058,1749600649684,-151.0,0.00023045,7]
[365325059,1749600649695,-43001.87,0.000231,2]
[365325060,1749600649705,-151.0,0.00023104,7]
[365325061,1749600649715,-151.0,0.00023104,7]
[365325062,1749600649725,-2848.88539018,0.00023141,8]
[365325063,1749600649736,-151.0,0.00023147,2]
[365325064,1749600649746,-5000.0,0.00023147,2]
[365325065,1749600649756,-151.0,0.00023149,7]
[365325066,1749600649766,-151.0,0.00023149,7]
[365325067,1749600649776,-151.0,0.00023149,7]
[365325068,1749600649786,-500.0,0.00023173,2]
[365325069,1749600649795,-500.0,0.00023173,2]
[365325070,1749600649806,-500.0,0.00023173,2]
[365325071,1749600649816,-67483.88,0.000232,7]
[365325072,1749600649825,-151.0,0.000232,7]
[365325073,1749600649835,-151.0,0.000232,7]
[365325074,1749600649845,-151.0,0.000232,7]
[365325075,1749600649856,-151.0,0.000232,7]
[365325076,1749600649865,-154.08081,0.000232,7]
[365325077,1749600649876,-154.08081,0.000232,7]
[365325078,1749600649885,-151.0,0.000232,7]
[365325079,1749600649899,-151.0,0.000232,7]
[365325080,1749600649909,-156.365003,0.000232,7]
[365325081,1749600649919,-181.523813,0.000232,7]
[365325082,1749600649928,-181.523813,0.000232,7]
[365325083,1749600649938,-151.0,0.000232,7]
[365325084,1749600649948,-151.0,0.000232,7]
[365325085,1749600649957,-2848.88539018,0.00023245,8]
[365325086,1749600649967,-600.0,0.00023256,2]
[365325087,1749600649976,-460.0,0.00023287,4]
[365325088,1749600649985,-400.0,0.00023287,4]
[365325089,1749600649995,-278.198717,0.00023287,7]
[365325090,1749600650004,-2407.03,0.00023287,4]
[365325091,1749600650014,-460.0,0.00023287,4]
[365325092,1749600650023,-460.0,0.00023287,4]
[365325093,1749600650033,-151.0,0.00023287,7]
[365325094,1749600650043,-871.51,0.00023287,4]
[365325095,1749600650052,-460.0,0.00023287,4]
[365325096,1749600650062,-1491.6,0.00023287,4]
[365325097,1749600650071,-572.2,0.00023287,4]
[365325098,1749600650081,-500.0,0.00023287,4]
[365325099,1749600650091,-629.7,0.00023287,4]
[365325100,1749600650100,-272.05,0.00023287,4]
[365325101,1749600650110,-2995.260711,0.00023287,2]
[365325102,1749600650119,-460.0,0.00023287,4]
[365325103,1749600650128,-460.0,0.00023287,4]
[365325104,1749600650137,-2995.260711,0.00023287,2]
[365325105,1749600650149,-460.0,0.00023287,2]
[365325106,1749600650159,-2211.98,0.00023287,4]
[365325107,1749600650169,-460.0,0.00023287,4]
[365325108,1749600650178,-1524.42,0.00023287,4]
[365325109,1749600650189,-460.0,0.00023287,4]
[365325110,1749600650199,-926.75,0.00023287,4]
[365325111,1749600650208,-1045.72,0.00023287,4]
[365325112,1749600650218,-1035.33,0.00023287,4]
[365325113,1749600650228,-2740.55,0.00023287,4]
[365325114,1749600650237,-1159.26,0.00023287,4]
[365325115,1749600650247,-691.32,0.00023287,4]
[365325116,1749600650256,-460.0,0.00023287,4]
[365325117,1749600650266,-460.0,0.00023287,4]
[365325118,1749600650275,-1193.01,0.00023287,4]
[365325119,1749600650285,-1929.48,0.00023287,4]
[365325120,1749600650295,-980.2,0.00023287,4]
[365325121,1749600650305,-151.0,0.00023287,7]
[365325122,1749600650314,-460.0,0.00023287,4]
[365325123,1749600650324,-2299.71,0.00023287,4]
[365325124,1749600650334,-460.0,0.00023287,4]
[365325125,1749600650343,-1207.42,0.00023287,4]
[365325126,1749600650355,-151.0,0.000233,7]
[365325127,1749600650364,-151.0,0.000233,7]
[365325128,1749600650373,-151.0,0.000233,9]
[365325129,1749600650383,-151.0,0.00023327,7]
[365325130,1749600650394,-158.3791089,0.00023328,2]
[365325131,1749600650404,-153.0,0.00023328,2]
[365325132,1749600650413,-176.8341807,0.00023328,2]
[365325133,1749600650424,-210.2838676,0.00023328,2]
[365325134,1749600650433,-176.8341807,0.00023328,2]
[365325135,1749600650443,-153.0,0.00023328,2]
[365325136,1749600650453,-176.8341807,0.00023328,2]
[365325137,1749600650463,-158.7504224,0.00023328,2]
[365325138,1749600650473,-153.0,0.00023328,2]
[365325139,1749600650483,-620.239272,0.00023328,2]
[365325140,1749600650492,-176.8341807,0.00023328,2]
[365325141,1749600650502,-158.7504224,0.00023328,2]
[365325142,1749600650512,-176.8341807,0.00023328,2]
[365325143,1749600650521,-573.3540349,0.00023328,2]
[365325144,1749600650530,-151.0,0.00023348,7]
[365325145,1749600650540,-2848.88539018,0.00023348,9]
[365325146,1749600650551,-1500.0,0.00023368,2]
[365325147,1749600650560,-1800.0,0.00023368,2]
[365325148,1749600650569,-309.8421927,0.0002337,2]
[365325149,1749600650579,-3000.0,0.000234,2]
[365325150,1749600650589,-10104.36018122,0.000234,7]
[365325151,1749600650598,-10104.36018122,0.000234,7]
[365325152,1749600650607,-151.0,0.000234,7]
[365325153,1749600650617,-151.0,0.000234,7]
[365325154,1749600650627,-151.0,0.000234,7]
[365325155,1749600650637,-657.851361,0.000234,7]
[365325156,1749600650714,-657.851361,0.000234,7]
[365325157,1749600650724,-151.0,0.000234,7]
[365325158,1749600650734,-270.713766,0.000234,7]
[365325159,1749600650744,-154.484211,0.000234,7]
[365325160,1749600650754,-151.0,0.000234,7]
[365325161,1749600650763,-3000.0,0.0002341,2]
[365325162,1749600650772,-3000.0,0.0002342,2]
[365325163,1749600650782,-3000.0,0.0002343,2]
[365325164,1749600650791,-3000.0,0.0002344,2]
[365325165,1749600650805,-213.266705,0.0002344,7]
[365325166,1749600650820,-151.0,0.0002344,7]
[365325167,1749600650831,-151.0,0.0002344,7]
[365325168,1749600650840,-3000.0,0.0002345,2]
[365325169,1749600650851,-2848.88539018,0.00023452,9]
[365325170,1749600650862,-501.49859335,0.00023457,2]
[365325171,1749600650872,-1500.0,0.00023457,2]
[365325172,1749600650882,-1500.0,0.00023457,2]
[365325173,1749600650892,-1500.0,0.00023457,2]
[365325174,1749600650902,-3000.0,0.0002346,2]
[365325175,1749600650912,-3000.0,0.0002347,2]
[365325176,1749600650921,-3000.0,0.0002348,2]
[365325177,1749600650931,-3000.0,0.0002349,2]
[365325178,1749600650940,-3000.0,0.000235,2]
[365325179,1749600650950,-3000.0,0.0002351,2]
[365325180,1749600650959,-3000.0,0.0002352,2]
[365325181,1749600650969,-3000.0,0.0002353,2]
[365325182,1749600650978,-364.9974737,0.00023534,2]
[365325183,1749600650989,-3000.0,0.0002354,2]
[365325184,1749600650998,-3000.0,0.0002355,2]
[365325185,1749600651008,-151.0,0.0002355,7]
[365325186,1749600651018,-151.0,0.0002355,7]
[365325187,1749600651028,-2848.88539018,0.00023555,9]
[365325188,1749600651038,-3000.0,0.0002356,2]
[365325189,1749600651047,-460.0,0.00023561,4]
[365325190,1749600651057,-400.0,0.00023561,4]
[365325191,1749600651066,-151.0,0.00023561,7]
[365325192,1749600651075,-151.0,0.00023561,7]
[365325193,1749600651085,-181.523813,0.00023561,7]
[365325194,1749600651094,-181.523813,0.00023561,7]
[365325195,1749600651103,-151.0,0.00023561,7]
[365325196,1749600651114,-460.0,0.00023561,4]
[365325197,1749600651123,-2407.03,0.00023561,4]
[365325198,1749600651133,-460.0,0.00023561,4]
[365325199,1749600651142,-151.0,0.00023561,7]
[365325200,1749600651152,-871.51,0.00023561,4]
[365325201,1749600651161,-151.0,0.00023561,7]
[365325202,1749600651171,-460.0,0.00023561,4]
[365325203,1749600651180,-1491.6,0.00023561,4]
[365325204,1749600651190,-572.2,0.00023561,4]
[365325205,1749600651200,-500.0,0.00023561,4]
[365325206,1749600651210,-629.7,0.00023561,4]
[365325207,1749600651219,-2995.260711,0.00023561,2]
[365325208,1749600651229,-460.0,0.00023561,4]
[365325209,1749600651241,-460.0,0.00023561,4]
[365325210,1749600651261,-2995.260711,0.00023561,2]
[365325211,1749600651279,-460.0,0.00023561,2]
[365325212,1749600651298,-460.0,0.00023561,4]
[365325213,1749600651318,-2211.98,0.00023561,4]
[365325214,1749600651338,-1524.42,0.00023561,4]
[365325215,1749600651359,-460.0,0.00023561,4]
[365325216,1749600651379,-926.75,0.00023561,4]
[365325217,1749600651394,-1045.72,0.00023561,4]
[365325218,1749600651408,-1035.33,0.00023561,4]
[365325219,1749600651428,-2740.55,0.00023561,4]
[365325220,1749600651446,-1159.26,0.00023561,4]
[365325221,1749600651464,-691.32,0.00023561,4]
[365325222,1749600651476,-460.0,0.00023561,4]
[365325223,1749600651495,-460.0,0.00023561,4]
[365325224,1749600651510,-1193.01,0.00023561,4]
[365325225,1749600651526,-1929.48,0.00023561,4]
[365325226,1749600651540,-980.2,0.00023561,4]
[365325227,1749600651554,-460.0,0.00023561,4]
[365325228,1749600651569,-2299.71,0.00023561,4]
[365325229,1749600651583,-460.0,0.00023561,4]
[365325230,1749600651597,-1207.42,0.00023561,4]
[365325231,1749600651611,-151.0,0.00023569,7]
[365325232,1749600651626,-3000.0,0.0002357,2]
[365325233,1749600651642,-3000.0,0.0002358,2]
[365325234,1749600651657,-3000.0,0.0002359,2]
[365325235,1749600651673,-3000.0,0.000236,2]
[365325236,1749600651688,-151.0,0.000236,7]
[365325237,1749600651704,-3000.0,0.0002361,2]
[365325238,1749600651719,-3000.0,0.0002362,2]
[365325239,1749600651734,-166.31295545,0.00023625,75]
[365325240,1749600651749,-3000.0,0.0002363,2]
[365325241,1749600651763,-3000.0,0.0002364,2]
[365325242,1749600651777,-3000.0,0.0002365,2]
[365325243,1749600651792,-2848.88539018,0.00023659,9]
[365325244,1749600651807,-3000.0,0.0002366,2]
[365325245,1749600651823,-3000.0,0.0002367,2]
[365325246,1749600651834,-3000.0,0.0002368,2]
[365325247,1749600651844,-3000.0,0.0002369,2]
[365325248,1749600651854,-5000.0,0.00023695,2]
[365325249,1749600651863,-3000.0,0.000237,2]
[365325250,1749600651873,-2341.05,0.000237,7]
[365325251,1749600651882,-151.0,0.000237,7]
[365325252,1749600651894,-151.0,0.000237,7]
[365325253,1749600651905,-657.851361,0.000237,7]
[365325254,1749600651915,-657.851361,0.000237,7]
[365325255,1749600651925,-151.0,0.000237,7]
[365325256,1749600651935,-151.0,0.000237,7]
[365325257,1749600651944,-3000.0,0.0002371,2]
[365325258,1749600651954,-3000.0,0.0002372,2]
[365325259,1749600651963,-389.12510712,0.00023721,2]
[365325260,1749600651973,-500.0,0.00023721,2]
[365325261,1749600651982,-3000.0,0.0002373,2]
[365325262,1749600652143,-3000.0,0.0002374,2]
[365325263,1749600652161,-3000.0,0.0002375,2]
[365325264,1749600652171,-151.0,0.0002375,7]
[365325265,1749600652181,-151.0,0.0002375,7]
[365325266,1749600652191,-151.0,0.0002375,7]
[365325267,1749600652199,-154.08081,0.0002375,7]
[365325268,1749600652209,-154.08081,0.0002375,7]
[365325269,1749600652219,-2766.44,0.00023753,2]
[365325270,1749600652228,-3000.0,0.0002376,2]
[365325271,1749600652237,-2848.88539018,0.00023762,9]
[365325272,1749600652246,-3000.0,0.0002377,2]
[365325273,1749600652255,-3000.0,0.0002378,2]
[365325274,1749600652264,-3000.0,0.0002379,2]
[365325275,1749600652273,-151.0,0.0002379,7]
[365325276,1749600652283,-587.0,0.00023797,2]
[365325277,1749600652292,-151.0,0.00023799,7]
[365325278,1749600652301,-151.0,0.00023799,7]
[365325279,1749600652310,-151.0,0.00023799,7]
[365325280,1749600652319,-587.0,0.00023799,2]
[365325281,1749600652328,-3000.0,0.000238,2]
[365325282,1749600652338,-151.0,0.000238,7]
[365325283,1749600652348,-151.0,0.000238,7]
[365325284,1749600652361,-3000.0,0.0002381,2]
[365325285,1749600652370,-3000.0,0.0002382,2]
[365325286,1749600652379,-3000.0,0.0002383,2]
[365325287,1749600652388,-323.13014727,0.00023835,4]
[365325288,1749600652399,-400.0,0.00023835,4]
[365325289,1749600652408,-514.83410121,0.00023835,4]
[365325290,1749600652418,-2407.03,0.00023835,4]
[365325291,1749600652428,-460.0,0.00023835,4]
[365325292,1749600652438,-871.51,0.00023835,4]
[365325293,1749600652448,-460.0,0.00023835,4]
[365325294,1749600652457,-1491.6,0.00023835,4]
[365325295,1749600652466,-572.2,0.00023835,4]
[365325296,1749600652475,-500.0,0.00023835,4]
[365325297,1749600652485,-629.7,0.00023835,4]
[365325298,1749600652494,-460.0,0.00023835,4]
[365325299,1749600652503,-460.0,0.00023835,4]
[365325300,1749600652513,-460.0,0.00023835,2]
[365325301,1749600652522,-460.0,0.00023835,4]
[365325302,1749600652531,-2211.98,0.00023835,4]
[365325303,1749600652540,-1524.42,0.00023835,4]
[365325304,1749600652549,-460.0,0.00023835,4]
[365325305,1749600652558,-926.75,0.00023835,4]
[365325306,1749600652567,-1045.72,0.00023835,4]
[365325307,1749600652576,-1035.33,0.00023835,4]
[365325308,1749600652585,-2740.55,0.00023835,4]
[365325309,1749600652595,-1159.26,0.00023835,4]
[365325310,1749600652604,-691.32,0.00023835,4]
[365325311,1749600652613,-460.0,0.00023835,4]
[365325312,1749600652622,-460.0,0.00023835,4]
[365325313,1749600652632,-1193.01,0.00023835,4]
[365325314,1749600652641,-1929.48,0.00023835,4]
[365325315,1749600652651,-980.2,0.00023835,4]
[365325316,1749600652660,-460.0,0.00023835,4]
[365325317,1749600652669,-2299.71,0.00023835,4]
[365325318,1749600652677,-460.0,0.00023835,4]
[365325319,1749600652687,-1207.42,0.00023835,4]
[365325320,1749600652696,-4095.109001,0.0002384,2]
[365325321,1749600652705,-153.102215,0.00023843,7]
[365325322,1749600652714,-181.523813,0.00023843,7]
[365325323,1749600652723,-181.523813,0.00023843,7]
[365325324,1749600652732,-151.0,0.00023843,7]
[365325325,1749600652742,-151.0,0.00023843,7]
[365325326,1749600652751,-2995.260711,0.00023843,2]
[365325327,1749600652763,-2995.260711,0.00023843,2]
[365325328,1749600652772,-2848.88539018,0.00023866,10]
[365325329,1749600652780,-151.0,0.000239,10]
[365325330,1749600652789,-868.56,0.000239,7]
[365325331,1749600652799,-2000.0,0.00023916,2]
[365325332,1749600652808,-2400.0,0.00023916,2]
[365325333,1749600652818,-207.02732177,0.00023943,2]
[365325334,1749600652827,-28866.27716416,0.00023944,2]
[365325335,1749600652836,-33608.25996679,0.00023944,2]
[365325336,1749600652845,-49027.53482789,0.00023944,2]
[365325337,1749600652854,-151.0,0.00023944,7]
[365325338,1749600652864,-151.0,0.00023944,7]
[365325339,1749600652873,-364.9974737,0.00023945,2]
[365325340,1749600652882,-364.9974737,0.00023945,2]
[365325341,1749600652893,-360.2344752,0.00023945,2]
[365325342,1749600652902,-215.0738,0.00023968,2]
[365325343,1749600652912,-2848.88539018,0.00023969,10]
[365325344,1749600652921,-151.0,0.00024,7]
[365325345,1749600652930,-151.0,0.00024,7]
[365325346,1749600652939,-158.29,0.00024,2]
[365325347,1749600652948,-229.6792923,0.00024,7]
[365325348,1749600652957,-160.0,0.00024,7]
[365325349,1749600652966,-424.12530924,0.00024,7]
[365325350,1749600652975,-834.9046531,0.00024,7]
[365325351,1749600652984,-160.0,0.00024,7]
[365325352,1749600652994,-160.0,0.00024,7]
[365325353,1749600653003,-160.0,0.00024,7]
[365325354,1749600653013,-2000.0,0.00024005,2]
[365325355,1749600653021,-87544.96961122,0.00024014,11]
[365325356,1749600653048,-1437.54626096,0.00024014,11]
[365325357,1749600653114,-40794.17412782,0.00024014,11]
[365325358,1749600653124,-159.54866634,0.00024027,2]
[365325359,1749600653133,-159.54866634,0.00024027,2]
[365325360,1749600653143,-2848.88539018,0.00024072,10]
[365325361,1749600653153,-345.5,0.00024108,2]
[365325362,1749600653162,-151.0,0.00024109,7]
[365325363,1749600653172,-400.0,0.00024109,4]
[365325364,1749600653181,-257.16329,0.00024109,7]
[365325365,1749600653191,-2407.03,0.00024109,4]
[365325366,1749600653201,-460.0,0.00024109,4]
[365325367,1749600653210,-871.51,0.00024109,4]
[365325368,1749600653219,-460.0,0.00024109,4]
[365325369,1749600653228,-1491.6,0.00024109,4]
[365325370,1749600653237,-572.2,0.00024109,4]
[365325371,1749600653246,-151.0,0.00024109,7]
[365325372,1749600653256,-629.7,0.00024109,4]
[365325373,1749600653265,-460.0,0.00024109,4]
[365325374,1749600653274,-460.0,0.00024109,4]
[365325375,1749600653283,-657.851361,0.00024109,7]
[365325376,1749600653292,-657.851361,0.00024109,7]
[365325377,1749600653302,-460.0,0.00024109,2]
[365325378,1749600653311,-460.0,0.00024109,4]
[365325379,1749600653319,-2211.98,0.00024109,4]
[365325380,1749600653329,-1524.42,0.00024109,4]
[365325381,1749600653338,-460.0,0.00024109,4]
[365325382,1749600653350,-926.75,0.00024109,4]
[365325383,1749600653359,-151.0,0.00024109,7]
[365325384,1749600653368,-1045.72,0.00024109,4]
[365325385,1749600653378,-1035.33,0.00024109,4]
[365325386,1749600653387,-2740.55,0.00024109,4]
[365325387,1749600653400,-1159.26,0.00024109,4]
[365325388,1749600653409,-691.32,0.00024109,4]
[365325389,1749600653418,-460.0,0.00024109,4]
[365325390,1749600653429,-460.0,0.00024109,4]
[365325391,1749600653438,-159.570355,0.00024109,7]
[365325392,1749600653447,-1193.01,0.00024109,4]
[365325393,1749600653457,-1929.48,0.00024109,4]
[365325394,1749600653466,-980.2,0.00024109,4]
[365325395,1749600653475,-460.0,0.00024109,4]
[365325396,1749600653484,-2299.71,0.00024109,4]
[365325397,1749600653494,-460.0,0.00024109,4]
[365325398,1749600653503,-1207.42,0.00024109,4]
[365325399,1749600653513,-573.3540349,0.0002415,2]
[365325400,1749600653522,-158.5050251,0.0002415,2]
[365325401,1749600653531,-153.0,0.0002415,2]
[365325402,1749600653541,-153.0,0.0002415,2]
[365325403,1749600653553,-153.0,0.0002415,2]
[365325404,1749600653563,-3604.64817149,0.00024155,2]
[365325405,1749600653573,-1347.69737,0.00024157,3]
[365325406,1749600653583,-2848.88539018,0.00024176,10]
[365325407,1749600653593,-2000.0,0.00024186,4]
[365325408,1749600653602,-151.0,0.000242,9]
[365325409,1749600653611,-43001.87,0.000242,2]
[365325410,1749600653621,-11858.11761888,0.000242,10]
[365325411,1749600653630,-3604.64817145,0.00024231,2]
[365325412,1749600653639,-5000.0,0.00024243,2]
[365325413,1749600653648,-6661.50502107,0.00024255,2]
[365325414,1749600653658,-1255.0,0.00024261,2]
[365325415,1749600653667,-3000.0,0.00024269,4]
[365325416,1749600653678,-289.883831,0.00024279,7]
[365325417,1749600653687,-2848.88539018,0.00024279,10]
[365325418,1749600653697,-424.12530924,0.000243,10]
[365325419,1749600653706,-834.9046531,0.000243,10]
[365325420,1749600653716,-3604.64817145,0.00024308,2]
[365325421,1749600653725,-333.0,0.00024314,2]
[365325422,1749600653735,-377.0,0.00024315,2]
[365325423,1749600653744,-600.0,0.00024352,2]
[365325424,1749600653753,-2848.88539018,0.00024383,11]
[365325425,1749600653763,-400.0,0.00024383,4]
[365325426,1749600653772,-151.0,0.00024383,7]
[365325427,1749600653782,-151.0,0.00024383,7]
[365325428,1749600653792,-2407.03,0.00024383,4]
[365325429,1749600653801,-460.0,0.00024383,4]
[365325430,1749600653811,-871.51,0.00024383,4]
[365325431,1749600653821,-460.0,0.00024383,4]
[365325432,1749600653831,-1491.6,0.00024383,4]
[365325433,1749600653840,-572.2,0.00024383,4]
[365325434,1749600653850,-629.7,0.00024383,4]
[365325435,1749600653859,-460.0,0.00024383,4]
[365325436,1749600653869,-460.0,0.00024383,4]
[365325437,1749600653878,-460.0,0.00024383,2]
[365325438,1749600653888,-460.0,0.00024383,4]
[365325439,1749600653898,-2211.98,0.00024383,4]
[365325440,1749600653907,-1524.42,0.00024383,4]
[365325441,1749600653917,-460.0,0.00024383,4]